[Event "*** Titled Tuesday Blitz"]
[Site "Chess.com"]
[Date "2018.04.03"]
[Round "8"]
[White "WinnerOleg"]
[Black "Jbd735"]
[Result "1-0"]
[WhiteElo "2345"]
[BlackElo "2219"]
[TimeControl "180+2"]
[EndTime "14:45:08 PDT"]
[Termination "WinnerOleg won on time"]

1. b3 {[%clk 0:03:01.9]} 1... d5 {[%clk 0:03:00]} 2. Bb2 {[%clk 0:03:03.7]} 2...
Nf6 {[%clk 0:03:00.2]} 3. e3 {[%clk 0:03:05.1]} 3... c6 {[%clk 0:03:00.8]} 4. f4
{[%clk 0:03:05.8]} 4... Bg4 {[%clk 0:02:59.6]} 5. Nf3 {[%clk 0:03:07.1]} 5... e6
{[%clk 0:03:00.4]} 6. Qe2 {[%clk 0:03:08.5]} 6... Nbd7 {[%clk 0:03:01]} 7. h3
{[%clk 0:03:09]} 7... Bxf3 {[%clk 0:03:01.6]} 8. Qxf3 {[%clk 0:03:10.9]} 8... a5
{[%clk 0:02:58.1]} 9. a4 {[%clk 0:03:11.5]} 9... Qb6 {[%clk 0:02:31.6]} 10. Be2
{[%clk 0:03:06.5]} 10... Be7 {[%clk 0:02:08.1]} 11. O-O {[%clk 0:03:07.4]} 11...
O-O {[%clk 0:02:05.9]} 12. d3 {[%clk 0:02:58.1]} 12... Bc5 {[%clk 0:01:59.6]}
13. d4 {[%clk 0:02:58.1]} 13... Bb4 {[%clk 0:02:00.7]} 14. c3 {[%clk 0:02:58.2]}
14... Bd6 {[%clk 0:01:53.7]} 15. Nd2 {[%clk 0:02:59.6]} 15... c5 {[%clk
0:01:49.6]} 16. Bb5 {[%clk 0:02:57.1]} 16... Rad8 {[%clk 0:01:32.5]} 17. c4
{[%clk 0:02:47.7]} 17... Be7 {[%clk 0:01:17.2]} 18. Kh1 {[%clk 0:02:29.6]} 18...
dxc4 {[%clk 0:00:50.7]} 19. Nxc4 {[%clk 0:02:31.5]} 19... Qc7 {[%clk 0:00:51.3]}
20. Rac1 {[%clk 0:02:19.5]} 20... Qb8 {[%clk 0:00:48.8]} 21. Nxa5 {[%clk
0:02:07.9]} 21... cxd4 {[%clk 0:00:37.1]} 22. Bxd4 {[%clk 0:02:09.6]} 22... e5
{[%clk 0:00:32.7]} 23. Bb2 {[%clk 0:02:08.3]} 23... e4 {[%clk 0:00:32.3]} 24.
Qf2 {[%clk 0:01:56.9]} 24... Nc5 {[%clk 0:00:29.3]} 25. Bxf6 {[%clk 0:01:47.3]}
25... gxf6 {[%clk 0:00:31.2]} 26. Rfd1 {[%clk 0:01:26.6]} 26... Qa7 {[%clk
0:00:25.3]} 27. b4 {[%clk 0:01:12.7]} 27... Nd3 {[%clk 0:00:21.4]} 28. Bxd3
{[%clk 0:01:14.2]} 28... exd3 {[%clk 0:00:15]} 29. Rc4 {[%clk 0:01:09.8]} 29...
Rd7 {[%clk 0:00:12]} 30. f5 {[%clk 0:01:10.8]} 30... Rfd8 {[%clk 0:00:07.2]} 31.
Rd2 {[%clk 0:00:59.7]} 31... Bxb4 {[%clk 0:00:06.4]} 32. Rxb4 {[%clk 0:00:46.4]}
32... Qxa5 {[%clk 0:00:07.1]} 33. Rg4+ {[%clk 0:00:48.3]} 33... Kh8 {[%clk
0:00:07.1]} 34. Rd4 {[%clk 0:00:36.2]} 34... Rxd4 {[%clk 0:00:05.7]} 35. exd4
{[%clk 0:00:38.1]} 35... Qd5 {[%clk 0:00:04.2]} 36. Rxd3 {[%clk 0:00:38.4]}
36... Ra8 {[%clk 0:00:04.7]} 37. Qb2 {[%clk 0:00:35.3]} 37... Rxa4 {[%clk
0:00:04.3]} 38. Qf2 {[%clk 0:00:26.9]} 38... Ra2 {[%clk 0:00:03.5]} 39. Qg3
{[%clk 0:00:21.3]} 39... Ra1+ {[%clk 0:00:02.9]} 40. Kh2 {[%clk 0:00:22]} 1-0

[Event "*** Titled Tuesday Blitz"]
[Site "Chess.com"]
[Date "2018.04.03"]
[Round "8"]
[White "AndrewDGreen"]
[Black "RandomOracle"]
[Result "1-0"]
[WhiteElo "2128"]
[BlackElo "2136"]
[TimeControl "180+2"]
[EndTime "14:45:09 PDT"]
[Termination "AndrewDGreen won on time"]

1. d4 {[%clk 0:02:55.8]} 1... Nf6 {[%clk 0:02:58.1]} 2. Nf3 {[%clk 0:02:56.2]}
2... c5 {[%clk 0:02:55.5]} 3. d5 {[%clk 0:02:56.2]} 3... e6 {[%clk 0:02:47.9]}
4. c4 {[%clk 0:02:53.6]} 4... exd5 {[%clk 0:02:48.8]} 5. cxd5 {[%clk 0:02:55.5]}
5... d6 {[%clk 0:02:49.1]} 6. Nc3 {[%clk 0:02:56.3]} 6... g6 {[%clk 0:02:44.2]}
7. Bf4 {[%clk 0:02:56.1]} 7... a6 {[%clk 0:02:41.9]} 8. a4 {[%clk 0:02:57.4]}
8... Bg7 {[%clk 0:02:28.5]} 9. h3 {[%clk 0:02:58.4]} 9... O-O {[%clk 0:02:27.4]}
10. e3 {[%clk 0:02:59.7]} 10... Qe7 {[%clk 0:02:18.1]} 11. Nd2 {[%clk 0:03:00]}
11... Nbd7 {[%clk 0:02:13.7]} 12. Nc4 {[%clk 0:02:54]} 12... Ne8 {[%clk
0:02:14.4]} 13. Be2 {[%clk 0:02:51.4]} 13... Ne5 {[%clk 0:02:03.4]} 14. Nb6
{[%clk 0:02:48.3]} 14... Rb8 {[%clk 0:02:03.3]} 15. Nxc8 {[%clk 0:02:45.7]}
15... Rxc8 {[%clk 0:02:01.5]} 16. O-O {[%clk 0:02:46.3]} 16... Nc7 {[%clk
0:01:53.6]} 17. a5 {[%clk 0:02:41.5]} 17... Rb8 {[%clk 0:01:47.2]} 18. Qc2
{[%clk 0:02:38.5]} 18... b5 {[%clk 0:01:42.1]} 19. axb6 {[%clk 0:02:39]} 19...
Rxb6 {[%clk 0:01:42.8]} 20. Ra2 {[%clk 0:02:30.4]} 20... Rfb8 {[%clk 0:01:43.1]}
21. Re1 {[%clk 0:02:27.2]} 21... Rb4 {[%clk 0:01:32.1]} 22. Bg3 {[%clk
0:02:11.9]} 22... Nc4 {[%clk 0:01:20.5]} 23. Bxc4 {[%clk 0:02:11.2]} 23... Rxc4
{[%clk 0:01:21.4]} 24. Qd3 {[%clk 0:01:53.2]} 24... Rcb4 {[%clk 0:01:14.5]} 25.
Re2 {[%clk 0:01:47.1]} 25... Rb3 {[%clk 0:01:07.1]} 26. Qc2 {[%clk 0:01:31.4]}
26... Bxc3 {[%clk 0:00:30.4]} 27. bxc3 {[%clk 0:01:29.3]} 27... Nxd5 {[%clk
0:00:31.5]} 28. Rxa6 {[%clk 0:01:27.8]} 28... Nxc3 {[%clk 0:00:25.3]} 29. Rd2
{[%clk 0:01:25.9]} 29... Ne4 {[%clk 0:00:24.2]} 30. Bxd6 {[%clk 0:01:16.4]}
30... Nxd6 {[%clk 0:00:21.4]} 31. Raxd6 {[%clk 0:01:13.4]} 31... Qe5 {[%clk
0:00:17]} 32. Rd1 {[%clk 0:01:04.4]} 32... Rb2 {[%clk 0:00:16.1]} 33. Qc4 {[%clk
0:00:44.4]} 33... R8b4 {[%clk 0:00:13]} 34. Qd5 {[%clk 0:00:24.4]} 34... Qxd5
{[%clk 0:00:09.3]} 35. R6xd5 {[%clk 0:00:26.2]} 35... c4 {[%clk 0:00:10.3]} 36.
Rc5 {[%clk 0:00:26]} 1-0

[Event "*** Titled Tuesday Blitz"]
[Site "Chess.com"]
[Date "2018.04.03"]
[Round "8"]
[White "denizozen"]
[Black "ShimanovAlex"]
[Result "0-1"]
[WhiteElo "2639"]
[BlackElo "2718"]
[TimeControl "180+2"]
[EndTime "14:45:13 PDT"]
[Termination "ShimanovAlex won by resignation"]

1. e4 {[%clk 0:03:01.9]} 1... c6 {[%clk 0:02:57.1]} 2. d4 {[%clk 0:03:00.8]}
2... d5 {[%clk 0:02:58.2]} 3. Nc3 {[%clk 0:03:02.7]} 3... a6 {[%clk 0:02:57.8]}
4. Nf3 {[%clk 0:03:02.3]} 4... dxe4 {[%clk 0:02:57.6]} 5. Nxe4 {[%clk
0:03:02.1]} 5... Nf6 {[%clk 0:02:59.5]} 6. Nxf6+ {[%clk 0:03:02.7]} 6... exf6
{[%clk 0:03:01.4]} 7. Bd3 {[%clk 0:03:02]} 7... Bd6 {[%clk 0:03:02.3]} 8. O-O
{[%clk 0:03:02.5]} 8... O-O {[%clk 0:03:03.3]} 9. c3 {[%clk 0:03:01.8]} 9... Qc7
{[%clk 0:03:04.3]} 10. h3 {[%clk 0:03:01.5]} 10... Rd8 {[%clk 0:03:04.2]} 11.
Qc2 {[%clk 0:03:02.3]} 11... h6 {[%clk 0:03:04.9]} 12. Re1 {[%clk 0:02:58.1]}
12... Nd7 {[%clk 0:03:05.7]} 13. Bd2 {[%clk 0:02:50.8]} 13... Nf8 {[%clk
0:03:02.1]} 14. Re2 {[%clk 0:02:50.8]} 14... Be6 {[%clk 0:03:00.2]} 15. c4
{[%clk 0:02:49.3]} 15... b5 {[%clk 0:02:58]} 16. b3 {[%clk 0:02:50]} 16... Bf4
{[%clk 0:02:54.3]} 17. Bxf4 {[%clk 0:02:46.9]} 17... Qxf4 {[%clk 0:02:54.8]} 18.
Rae1 {[%clk 0:02:43.5]} 18... Rac8 {[%clk 0:02:51.9]} 19. Re4 {[%clk 0:02:37.5]}
19... Qd6 {[%clk 0:02:50.1]} 20. R4e3 {[%clk 0:02:33.7]} 20... Qb4 {[%clk
0:02:45.6]} 21. R3e2 {[%clk 0:02:23.7]} 21... a5 {[%clk 0:02:41.6]} 22. Bf5
{[%clk 0:02:11.5]} 22... Bxf5 {[%clk 0:02:40]} 23. Qxf5 {[%clk 0:02:12.5]} 23...
bxc4 {[%clk 0:02:41.5]} 24. bxc4 {[%clk 0:02:13.2]} 24... Qxc4 {[%clk
0:02:42.1]} 25. Rc2 {[%clk 0:02:14.1]} 25... Qd5 {[%clk 0:02:40.5]} 26. Qxd5
{[%clk 0:02:11.2]} 26... cxd5 {[%clk 0:02:32.3]} 27. Rec1 {[%clk 0:02:09.6]}
27... Rxc2 {[%clk 0:02:33.1]} 28. Rxc2 {[%clk 0:02:11.5]} 28... Ne6 {[%clk
0:02:34.4]} 29. Rc6 {[%clk 0:02:09.8]} 29... Rb8 {[%clk 0:02:34.4]} 30. Ra6
{[%clk 0:02:10.3]} 30... Rb1+ {[%clk 0:02:31.7]} 31. Kh2 {[%clk 0:02:11]} 31...
Rb2 {[%clk 0:02:33.6]} 32. Rxa5 {[%clk 0:01:51]} 32... Rxf2 {[%clk 0:02:33.5]}
33. a4 {[%clk 0:01:52.5]} 33... g5 {[%clk 0:02:31.7]} 34. Kg1 {[%clk 0:01:47.2]}
34... Ra2 {[%clk 0:02:31.1]} 35. g3 {[%clk 0:01:47]} 35... Kg7 {[%clk 0:02:27]}
36. Rxd5 {[%clk 0:01:37.4]} 36... Rxa4 {[%clk 0:02:27.2]} 37. Rd7 {[%clk
0:01:35.4]} 37... Ra2 {[%clk 0:02:19.7]} 38. d5 {[%clk 0:01:31.1]} 38... Nc5
{[%clk 0:02:18.8]} 39. Rd8 {[%clk 0:01:31.9]} 39... Ne4 {[%clk 0:02:19.3]} 40.
g4 {[%clk 0:01:31.5]} 40... f5 {[%clk 0:02:12.5]} 41. Nd4 {[%clk 0:01:24.4]}
41... f4 {[%clk 0:02:09]} 42. Nf5+ {[%clk 0:01:24.2]} 42... Kf6 {[%clk 0:02:10]}
43. Nxh6 {[%clk 0:01:19.5]} 43... f3 {[%clk 0:02:08.7]} 44. Rf8 {[%clk
0:01:18.8]} 44... f2+ {[%clk 0:02:00.5]} 45. Kg2 {[%clk 0:01:17.7]} 45... Kg7
{[%clk 0:01:58]} 46. Rxf7+ {[%clk 0:01:18.6]} 46... Kxh6 {[%clk 0:01:59.1]} 47.
d6 {[%clk 0:01:13]} 47... Rd2 {[%clk 0:01:51.2]} 48. d7 {[%clk 0:01:01.5]} 48...
Kg6 {[%clk 0:01:27.5]} 49. Re7 {[%clk 0:00:14]} 49... Ng3 {[%clk 0:01:15.2]} 50.
Re6+ {[%clk 0:00:10.7]} 50... Kg7 {[%clk 0:01:05.7]} 51. Re7+ {[%clk 0:00:11.8]}
51... Kf6 {[%clk 0:01:03.3]} 0-1

[Event "*** Titled Tuesday Blitz"]
[Site "Chess.com"]
[Date "2018.04.03"]
[Round "8"]
[White "nubair1198"]
[Black "Mistheoretical"]
[Result "1-0"]
[WhiteElo "2567"]
[BlackElo "2299"]
[TimeControl "180+2"]
[EndTime "14:45:25 PDT"]
[Termination "nubair1198 won by resignation"]

1. d4 {[%clk 0:03:01.9]} 1... Nf6 {[%clk 0:03:01]} 2. c4 {[%clk 0:03:02.7]} 2...
Nc6 {[%clk 0:03:02.5]} 3. d5 {[%clk 0:03:01.6]} 3... Ne5 {[%clk 0:03:03.6]} 4.
e4 {[%clk 0:02:33]} 4... e6 {[%clk 0:03:00.7]} 5. f4 {[%clk 0:02:20.5]} 5... Ng6
{[%clk 0:03:01.3]} 6. dxe6 {[%clk 0:02:10.3]} 6... fxe6 {[%clk 0:03:00.3]} 7.
Bd3 {[%clk 0:01:48.2]} 7... Bb4+ {[%clk 0:02:52.2]} 8. Nc3 {[%clk 0:01:39]} 8...
Bxc3+ {[%clk 0:02:41.7]} 9. bxc3 {[%clk 0:01:40.9]} 9... d6 {[%clk 0:02:42.6]}
10. Nf3 {[%clk 0:01:25.5]} 10... e5 {[%clk 0:02:31.4]} 11. f5 {[%clk 0:01:26.4]}
11... Nf8 {[%clk 0:02:17.8]} 12. g4 {[%clk 0:01:24.4]} 12... N8d7 {[%clk
0:01:14.7]} 13. g5 {[%clk 0:01:20.3]} 13... Nh5 {[%clk 0:01:16.2]} 14. Nxe5
{[%clk 0:01:19.8]} 14... Nxe5 {[%clk 0:01:18.1]} 15. Qxh5+ {[%clk 0:01:20.8]}
15... g6 {[%clk 0:01:16.1]} 16. fxg6 {[%clk 0:01:20.4]} 16... Nxg6 {[%clk
0:00:41]} 17. e5 {[%clk 0:01:20.5]} 17... O-O {[%clk 0:00:23.8]} 18. Bxg6 {[%clk
0:01:19.1]} 18... hxg6 {[%clk 0:00:25.4]} 19. Qxg6+ {[%clk 0:01:18.7]} 19... Kh8
{[%clk 0:00:26.4]} 20. Qh6+ {[%clk 0:00:43.9]} 20... Kg8 {[%clk 0:00:27.6]} 21.
g6 {[%clk 0:00:44.3]} 21... Qe7 {[%clk 0:00:24.5]} 22. Be3 {[%clk 0:00:45.7]}
22... Bg4 {[%clk 0:00:12.2]} 23. Rg1 {[%clk 0:00:44.8]} 23... Bf3 {[%clk
0:00:09.6]} 24. exd6 {[%clk 0:00:42.8]} 24... cxd6 {[%clk 0:00:09]} 25. Kd2
{[%clk 0:00:44]} 25... Rae8 {[%clk 0:00:08.4]} 26. Rae1 {[%clk 0:00:44.3]} 26...
Qg7 {[%clk 0:00:04.4]} 27. Qh4 {[%clk 0:00:37.7]} 27... Re4 {[%clk 0:00:03.5]}
28. Qh6 {[%clk 0:00:36.7]} 28... Qxh6 {[%clk 0:00:03.2]} 29. Bxh6 {[%clk
0:00:38.5]} 29... Rf6 {[%clk 0:00:03.8]} 30. Ref1 {[%clk 0:00:35.7]} 30... Ree6
{[%clk 0:00:03.1]} 31. Be3 {[%clk 0:00:35.6]} 31... Be4 {[%clk 0:00:02.8]} 32.
Rxf6 {[%clk 0:00:32.3]} 32... Rxf6 {[%clk 0:00:03.8]} 33. g7 {[%clk 0:00:34.2]}
33... Rf7 {[%clk 0:00:03.9]} 34. Bd4 {[%clk 0:00:35.6]} 34... Bf5 {[%clk
0:00:04.6]} 35. Re1 {[%clk 0:00:36.1]} 35... Bd7 {[%clk 0:00:03.2]} 36. Re4
{[%clk 0:00:33.7]} 36... b6 {[%clk 0:00:02.9]} 37. Rh4 {[%clk 0:00:35]} 37...
Rxg7 {[%clk 0:00:02.2]} 38. Bxg7 {[%clk 0:00:36.9]} 38... Kxg7 {[%clk
0:00:04.1]} 39. Rd4 {[%clk 0:00:38.8]} 39... Be6 {[%clk 0:00:04.1]} 40. Rxd6
{[%clk 0:00:38.4]} 40... Bxc4 {[%clk 0:00:05.5]} 41. Rd7+ {[%clk 0:00:40]} 41...
Kg6 {[%clk 0:00:07.1]} 42. Rxa7 {[%clk 0:00:41.9]} 42... b5 {[%clk 0:00:08.3]}
43. a3 {[%clk 0:00:42.6]} 43... Kh6 {[%clk 0:00:08.4]} 44. Rc7 {[%clk 0:00:44]}
44... Bf1 {[%clk 0:00:08.3]} 45. Ke3 {[%clk 0:00:45.2]} 45... Kg6 {[%clk
0:00:08.3]} 46. Kd4 {[%clk 0:00:46]} 46... Kh6 {[%clk 0:00:08.2]} 47. Kc5 {[%clk
0:00:47.3]} 47... Kg6 {[%clk 0:00:08.8]} 48. Rb7 {[%clk 0:00:48.7]} 48... Kh6
{[%clk 0:00:08.7]} 49. Rxb5 {[%clk 0:00:50]} 1-0

[Event "*** Titled Tuesday Blitz"]
[Site "Chess.com"]
[Date "2018.04.03"]
[Round "8"]
[White "pKiLz5Rn9b"]
[Black "schoolmeester"]
[Result "0-1"]
[WhiteElo "2644"]
[BlackElo "2717"]
[TimeControl "180+2"]
[EndTime "14:45:29 PDT"]
[Termination "schoolmeester won by checkmate"]

1. e4 {[%clk 0:03:01.9]} 1... Nc6 {[%clk 0:02:59.2]} 2. Nf3 {[%clk 0:03:00.6]}
2... d6 {[%clk 0:02:58.9]} 3. d4 {[%clk 0:03:01]} 3... Nf6 {[%clk 0:02:57.1]} 4.
Nc3 {[%clk 0:03:02.4]} 4... g6 {[%clk 0:02:58.1]} 5. h3 {[%clk 0:03:00.9]} 5...
Bg7 {[%clk 0:02:58.7]} 6. Be3 {[%clk 0:03:02.4]} 6... O-O {[%clk 0:02:58.7]} 7.
Qd2 {[%clk 0:03:03.6]} 7... e5 {[%clk 0:02:49.4]} 8. dxe5 {[%clk 0:03:03]} 8...
Nxe5 {[%clk 0:02:45.3]} 9. Be2 {[%clk 0:02:57.9]} 9... Re8 {[%clk 0:02:39.4]}
10. Rd1 {[%clk 0:02:58]} 10... Nc6 {[%clk 0:02:34.2]} 11. Bd3 {[%clk 0:02:44.9]}
11... d5 {[%clk 0:02:26.5]} 12. Bb5 {[%clk 0:02:37.5]} 12... Nxe4 {[%clk
0:02:24.1]} 13. Nxe4 {[%clk 0:02:25.1]} 13... Rxe4 {[%clk 0:02:22.3]} 14. O-O
{[%clk 0:02:13.8]} 14... a6 {[%clk 0:02:18.6]} 15. Bxc6 {[%clk 0:02:08]} 15...
bxc6 {[%clk 0:02:20.5]} 16. Bd4 {[%clk 0:02:06.2]} 16... Bxd4 {[%clk 0:02:00.3]}
17. Nxd4 {[%clk 0:02:08.1]} 17... Qd6 {[%clk 0:02:01.5]} 18. Qc3 {[%clk
0:01:47.1]} 18... Bd7 {[%clk 0:01:54.5]} 19. Nb3 {[%clk 0:01:30.4]} 19... Bf5
{[%clk 0:01:55.1]} 20. Nd4 {[%clk 0:01:28.2]} 20... Bd7 {[%clk 0:01:53.6]} 21.
Nb3 {[%clk 0:01:29.5]} 21... Rc4 {[%clk 0:01:44]} 22. Qd2 {[%clk 0:01:28.9]}
22... Re8 {[%clk 0:01:42.8]} 23. Rfe1 {[%clk 0:01:06.2]} 23... Rce4 {[%clk
0:01:41]} 24. Rxe4 {[%clk 0:01:03.4]} 24... Rxe4 {[%clk 0:01:42.1]} 25. Qa5
{[%clk 0:01:01]} 25... Rc4 {[%clk 0:01:30.1]} 26. c3 {[%clk 0:00:59.9]} 26... c5
{[%clk 0:01:31.1]} 27. Qa3 {[%clk 0:00:35.3]} 27... Bb5 {[%clk 0:01:25]} 28. Nd2
{[%clk 0:00:29.6]} 28... Ra4 {[%clk 0:01:22.8]} 29. Qb3 {[%clk 0:00:31.2]} 29...
Rf4 {[%clk 0:01:17.4]} 30. Re1 {[%clk 0:00:26.5]} 30... Kg7 {[%clk 0:01:15.2]}
31. Qc2 {[%clk 0:00:21.6]} 31... Qf6 {[%clk 0:01:12.3]} 32. Nf3 {[%clk
0:00:21.9]} 32... Bd7 {[%clk 0:01:03.3]} 33. Nh2 {[%clk 0:00:15.8]} 33... h5
{[%clk 0:01:00.3]} 34. Qd2 {[%clk 0:00:17.1]} 34... Be6 {[%clk 0:01:00.7]} 35.
Nf1 {[%clk 0:00:18.2]} 35... d4 {[%clk 0:01:01.1]} 36. Ng3 {[%clk 0:00:17.5]}
36... Bd5 {[%clk 0:00:58.4]} 37. c4 {[%clk 0:00:11.8]} 37... Bc6 {[%clk
0:00:50.8]} 38. f3 {[%clk 0:00:11.9]} 38... h4 {[%clk 0:00:50.6]} 39. Ne2 {[%clk
0:00:10.7]} 39... Rxf3 {[%clk 0:00:50.1]} 40. gxf3 {[%clk 0:00:07]} 40... Qxf3
{[%clk 0:00:52]} 41. Qg5 {[%clk 0:00:07.6]} 41... Qh1+ {[%clk 0:00:49]} 42. Kf2
{[%clk 0:00:07.9]} 42... Qh2+ {[%clk 0:00:49.4]} 43. Kf1 {[%clk 0:00:09.4]}
43... Qxh3+ {[%clk 0:00:50.5]} 44. Kf2 {[%clk 0:00:06]} 44... Qf3+ {[%clk
0:00:47]} 45. Kg1 {[%clk 0:00:07]} 45... d3 {[%clk 0:00:48.4]} 46. Nc3 {[%clk
0:00:03]} 46... d2 {[%clk 0:00:41.5]} 47. Qxd2 {[%clk 0:00:03.3]} 47... Qh1+
{[%clk 0:00:40.6]} 48. Kf2 {[%clk 0:00:04.8]} 48... Qg2+ {[%clk 0:00:42.1]} 49.
Ke3 {[%clk 0:00:05.8]} 49... Qf3# {[%clk 0:00:43.7]} 0-1

[Event "*** Titled Tuesday Blitz"]
[Site "Chess.com"]
[Date "2018.04.03"]
[Round "8"]
[White "GasconJR"]
[Black "Gattass"]
[Result "1-0"]
[WhiteElo "2330"]
[BlackElo "2205"]
[TimeControl "180+2"]
[EndTime "14:45:29 PDT"]
[Termination "GasconJR won by checkmate"]

1. e4 {[%clk 0:03:01.9]} 1... c5 {[%clk 0:02:58.4]} 2. Nf3 {[%clk 0:03:01.9]}
2... Nf6 {[%clk 0:02:58.1]} 3. e5 {[%clk 0:02:58.1]} 3... Nd5 {[%clk 0:02:58.3]}
4. Nc3 {[%clk 0:02:59.5]} 4... Nb6 {[%clk 0:02:53.4]} 5. a4 {[%clk 0:02:57.6]}
5... a5 {[%clk 0:02:48.8]} 6. Bb5 {[%clk 0:02:55.8]} 6... g6 {[%clk 0:02:45.2]}
7. O-O {[%clk 0:02:55.9]} 7... Bg7 {[%clk 0:02:45.8]} 8. d4 {[%clk 0:02:56.7]}
8... cxd4 {[%clk 0:02:42.3]} 9. Qxd4 {[%clk 0:02:53.7]} 9... Nc6 {[%clk
0:02:43]} 10. Qf4 {[%clk 0:02:43.8]} 10... O-O {[%clk 0:02:27.9]} 11. Re1 {[%clk
0:02:43.1]} 11... Nb4 {[%clk 0:02:23.6]} 12. Re2 {[%clk 0:02:22.4]} 12... d6
{[%clk 0:02:12.9]} 13. exd6 {[%clk 0:01:33.3]} 13... Qxd6 {[%clk 0:01:57.6]} 14.
Qxd6 {[%clk 0:01:30.4]} 14... exd6 {[%clk 0:01:59.5]} 15. Bf4 {[%clk 0:01:28.6]}
15... Rd8 {[%clk 0:01:35.1]} 16. Be3 {[%clk 0:01:22]} 16... N6d5 {[%clk
0:01:30.2]} 17. Nxd5 {[%clk 0:01:19.8]} 17... Nxd5 {[%clk 0:01:32.1]} 18. Bd4
{[%clk 0:01:20.8]} 18... Bg4 {[%clk 0:01:26.9]} 19. Bxg7 {[%clk 0:01:20.4]}
19... Kxg7 {[%clk 0:01:27.4]} 20. Rd2 {[%clk 0:01:20.8]} 20... Bxf3 {[%clk
0:01:26.3]} 21. gxf3 {[%clk 0:01:22.3]} 21... Ne7 {[%clk 0:01:23.7]} 22. Rad1
{[%clk 0:01:18.9]} 22... Nf5 {[%clk 0:01:22.4]} 23. Bd3 {[%clk 0:01:09]} 23...
Nh4 {[%clk 0:01:21.9]} 24. Be4 {[%clk 0:01:08.5]} 24... f5 {[%clk 0:01:21.5]}
25. Bd5 {[%clk 0:01:09]} 25... Rac8 {[%clk 0:01:15.8]} 26. Re1 {[%clk
0:00:49.5]} 26... Rc7 {[%clk 0:01:16]} 27. Rde2 {[%clk 0:00:49]} 27... Kf6
{[%clk 0:01:13.7]} 28. f4 {[%clk 0:00:49.4]} 28... Rdd7 {[%clk 0:01:02.7]} 29.
c3 {[%clk 0:00:40]} 29... Kg7 {[%clk 0:00:56.8]} 30. Re8 {[%clk 0:00:36.7]}
30... Kh6 {[%clk 0:00:57.1]} 31. R1e3 {[%clk 0:00:33.1]} 31... Kh5 {[%clk
0:00:49.8]} 32. Rh3 {[%clk 0:00:21.9]} 32... Re7 {[%clk 0:00:49]} 33. Rxe7
{[%clk 0:00:21.4]} 33... Rxe7 {[%clk 0:00:48.7]} 34. Bf3+ {[%clk 0:00:22.5]}
34... Kh6 {[%clk 0:00:49.2]} 35. Rxh4+ {[%clk 0:00:23.3]} 35... Kg7 {[%clk
0:00:50.4]} 36. Rh3 {[%clk 0:00:24.9]} 36... Re1+ {[%clk 0:00:50.4]} 37. Kg2
{[%clk 0:00:26.1]} 37... Rb1 {[%clk 0:00:48.5]} 38. Bxb7 {[%clk 0:00:25.8]}
38... Rxb2 {[%clk 0:00:49.1]} 39. Bc6 {[%clk 0:00:27.3]} 39... Rd2 {[%clk
0:00:44.5]} 40. Bb5 {[%clk 0:00:27.3]} 40... Rc2 {[%clk 0:00:39.8]} 41. Rd3
{[%clk 0:00:27.6]} 41... Kh6 {[%clk 0:00:40.3]} 42. c4 {[%clk 0:00:27.9]} 42...
Kh5 {[%clk 0:00:35.4]} 43. Kg3 {[%clk 0:00:17.2]} 43... h6 {[%clk 0:00:30.7]}
44. Rxd6 {[%clk 0:00:17]} 44... g5 {[%clk 0:00:27.4]} 45. Be8# {[%clk
0:00:17.2]} 1-0

[Event "*** Titled Tuesday Blitz"]
[Site "Chess.com"]
[Date "2018.04.03"]
[Round "8"]
[White "petrpalachev"]
[Black "GM_dmitrij"]
[Result "1-0"]
[WhiteElo "2606"]
[BlackElo "2686"]
[TimeControl "180+2"]
[EndTime "14:45:31 PDT"]
[Termination "petrpalachev won by checkmate"]

1. d4 {[%clk 0:03:01.9]} 1... d5 {[%clk 0:03:01]} 2. Nf3 {[%clk 0:03:02.5]} 2...
Nf6 {[%clk 0:03:01.8]} 3. c4 {[%clk 0:03:03.9]} 3... e6 {[%clk 0:03:03.2]} 4.
Nc3 {[%clk 0:03:04.9]} 4... Bb4 {[%clk 0:03:03.5]} 5. Qa4+ {[%clk 0:03:05.1]}
5... Nc6 {[%clk 0:03:04.1]} 6. e3 {[%clk 0:03:01.4]} 6... O-O {[%clk 0:03:02.6]}
7. Qc2 {[%clk 0:03:02]} 7... Bd6 {[%clk 0:03:01.2]} 8. a3 {[%clk 0:03:02]} 8...
b6 {[%clk 0:02:58.3]} 9. cxd5 {[%clk 0:03:01.2]} 9... exd5 {[%clk 0:02:47.6]}
10. Nxd5 {[%clk 0:02:57.8]} 10... Nxd5 {[%clk 0:02:48.6]} 11. Qxc6 {[%clk
0:02:58.6]} 11... Rb8 {[%clk 0:02:42.4]} 12. Be2 {[%clk 0:02:53.1]} 12... Bb7
{[%clk 0:02:43.4]} 13. Qc2 {[%clk 0:02:54.5]} 13... c5 {[%clk 0:02:34.2]} 14.
dxc5 {[%clk 0:02:54.9]} 14... Rc8 {[%clk 0:02:34.2]} 15. b4 {[%clk 0:02:54.4]}
15... bxc5 {[%clk 0:02:33.1]} 16. b5 {[%clk 0:02:55.4]} 16... Qf6 {[%clk
0:02:24.7]} 17. Bb2 {[%clk 0:02:54.8]} 17... Qh6 {[%clk 0:02:25.1]} 18. h3
{[%clk 0:02:51.6]} 18... c4 {[%clk 0:02:25.3]} 19. Bd4 {[%clk 0:02:46.5]} 19...
Nc7 {[%clk 0:02:13.1]} 20. a4 {[%clk 0:02:43.6]} 20... Bb4+ {[%clk 0:02:07.3]}
21. Kf1 {[%clk 0:02:44]} 21... a6 {[%clk 0:01:57]} 22. Qxc4 {[%clk 0:02:38.2]}
22... Nd5 {[%clk 0:01:54.3]} 23. Qb3 {[%clk 0:02:35.4]} 23... axb5 {[%clk
0:01:47.7]} 24. axb5 {[%clk 0:02:35.2]} 24... Bc3 {[%clk 0:01:48.6]} 25. Re1
{[%clk 0:02:06]} 25... Bxe1 {[%clk 0:01:44.9]} 26. Kxe1 {[%clk 0:02:04.9]} 26...
Qg6 {[%clk 0:01:36.4]} 27. Ne5 {[%clk 0:00:43]} 27... Qxg2 {[%clk 0:00:46.9]}
28. Bf3 {[%clk 0:00:42.6]} 28... Qg5 {[%clk 0:00:29.5]} 29. Bxd5 {[%clk
0:00:32.9]} 29... Rc1+ {[%clk 0:00:28.1]} 30. Kd2 {[%clk 0:00:27.2]} 30... Rxh1
{[%clk 0:00:28]} 31. Bxb7 {[%clk 0:00:29]} 31... Rh2 {[%clk 0:00:27.2]} 32. Ke2
{[%clk 0:00:27.2]} 32... Qg1 {[%clk 0:00:21.6]} 33. Nd3 {[%clk 0:00:27.8]} 33...
Rh1 {[%clk 0:00:22.9]} 34. Bxh1 {[%clk 0:00:25.1]} 34... Qxh1 {[%clk 0:00:24.8]}
35. Nf4 {[%clk 0:00:26.3]} 35... Qb7 {[%clk 0:00:16.4]} 36. b6 {[%clk
0:00:27.4]} 36... h6 {[%clk 0:00:17.8]} 37. Qd5 {[%clk 0:00:27.4]} 37... Qa6+
{[%clk 0:00:18.3]} 38. Kf3 {[%clk 0:00:28.2]} 38... Rc8 {[%clk 0:00:17.5]} 39.
Ng6 {[%clk 0:00:27.4]} 39... Re8 {[%clk 0:00:17.6]} 40. Ne5 {[%clk 0:00:25.4]}
40... Rf8 {[%clk 0:00:18.5]} 41. b7 {[%clk 0:00:19.6]} 41... Qf1 {[%clk
0:00:19.5]} 42. Kg3 {[%clk 0:00:15.9]} 42... Qg1+ {[%clk 0:00:19.7]} 43. Qg2
{[%clk 0:00:17.3]} 43... Qb1 {[%clk 0:00:21.2]} 44. Nd7 {[%clk 0:00:16]} 44...
Qg6+ {[%clk 0:00:19.4]} 45. Kh2 {[%clk 0:00:17]} 45... Qd6+ {[%clk 0:00:20.8]}
46. Qg3 {[%clk 0:00:16.8]} 46... Qxd7 {[%clk 0:00:16.1]} 47. Qxg7# {[%clk
0:00:17.3]} 1-0